bitfinex/quotes_BTCUSD_20260126
["timestamp","ask_amount","ask_price","bid_price","bid_amount"]
[1769453914776,0.04131144,88406.0,88396.0,0.0232254]
[1769453915165,0.03,88405.0,88396.0,0.06971049]
[1769453915365,0.03,88405.0,88396.0,0.0232254]
[1769453916627,0.01131144,88406.0,88396.0,0.0232254]
[1769453916628,0.03,88404.0,88396.0,0.0232254]
[1769453917645,0.03,88403.0,88386.0,0.04532]
[1769453917846,0.03,88395.0,88386.0,0.0232254]
[1769453918921,0.03,88394.0,88386.0,0.0232254]
[1769453919213,0.03,88394.0,88386.0,0.69337328]
[1769453919717,0.42760368,88410.0,88385.0,0.67014788]
[1769453919924,0.03,88409.0,88392.0,0.67014788]
[1769453920065,0.03,88409.0,88395.0,0.0232254]
[1769453920268,0.03,88409.0,88397.0,0.0232254]
[1769453920564,0.03,88409.0,88398.0,1.07117869]
[1769453920565,0.04131106,88409.0,88398.0,1.07117869]
[1769453920792,0.01131183,88403.0,88398.0,0.37780541]
[1769453920987,0.03,88402.0,88399.0,0.67014788]
[1769453921209,0.04131196,88402.0,88399.0,0.67014788]
[1769453921555,0.03,88402.0,88396.0,0.0232254]
[1769453921706,0.03,88402.0,88398.0,0.0232254]
[1769453921904,0.0002543,88408.0,88399.0,0.67014788]
[1769453922307,0.0002543,88408.0,88395.0,0.0232254]
[1769453922511,0.03,88397.0,88395.0,0.67014788]
[1769453922679,0.08656356,88397.0,88396.0,0.69337328]
[1769453922881,0.03,88391.0,88389.0,0.0232254]
[1769453923076,0.03,88391.0,88390.0,0.69337328]
[1769453923282,0.03,88391.0,88390.0,0.73985837]
[1769453923534,0.04756127,88416.0,88391.0,0.0232254]
[1769453923781,0.04756127,88416.0,88383.0,0.17392]
[1769453923782,0.02412991,88430.0,88401.0,0.67014788]
[1769453923995,0.0302543,88423.0,88403.0,0.69337328]
[1769453924205,0.07781303,88421.0,88403.0,0.69337328]
[1769453924408,0.03,88405.0,88403.0,0.69337328]
[1769453924939,0.05655654,88408.0,88401.0,0.67014788]
[1769453925154,0.05655663,88407.0,88401.0,0.67014788]
[1769453925512,0.03,88406.0,88401.0,0.67014788]
[1769453925691,0.03,88406.0,88401.0,0.69337328]
[1769453925898,0.03,88406.0,88402.0,0.0232254]
[1769453926072,0.03,88406.0,88403.0,0.67014788]
[1769453926296,0.03,88406.0,88403.0,0.69337328]
[1769453926496,0.03,88405.0,88403.0,0.69337328]
[1769453927509,0.03,88409.0,88403.0,0.69337328]
[1769453929079,0.03,88408.0,88403.0,0.69337328]
[1769453929445,8.351e-05,88445.0,88398.0,0.37780541]
[1769453929647,0.02355217,88425.0,88410.0,0.37780541]
[1769453929870,0.01,88410.0,88399.0,0.02330842]
[1769453930195,0.37780541,88430.0,88400.0,0.37780541]
[1769453930385,0.01130978,88419.0,88405.0,0.02330842]
[1769453930593,0.01131055,88413.0,88406.0,0.71597116]
[1769453930789,0.01131055,88413.0,88408.0,0.69266274]
[1769453930993,0.01131055,88413.0,88409.0,0.02330842]
[1769453931194,0.03,88412.0,88409.0,0.71597116]
[1769453931356,0.00797369,88435.0,88411.0,0.69266274]
[1769453931693,0.00797369,88431.0,88411.0,0.69266274]
[1769453931917,0.00797369,88431.0,88411.0,0.69234257]
[1769453932322,0.03,88428.0,88411.0,0.71565099]
[1769453932876,0.03,88428.0,88412.0,0.02330842]
[1769453933077,0.02355217,88450.0,88424.0,0.69266274]
[1769453933300,0.02355217,88450.0,88426.0,0.69266274]
[1769453933301,0.01130825,88431.0,88426.0,0.69266274]
[1769453933501,0.01130876,88427.0,88420.0,0.69266274]
[1769453933743,0.06784975,88431.0,88420.0,0.71597116]
[1769453933951,0.01130837,88430.0,88420.0,0.71597116]
[1769453934167,0.01130786,88434.0,88421.0,0.04648509]
[1769453934372,0.03,88431.0,88422.0,0.69266274]
[1769453934745,0.03,88431.0,88410.0,0.55168541]
[1769453934927,0.03,88431.0,88414.0,0.02330842]
[1769453935133,0.03,88431.0,88410.0,0.55168541]
[1769453935134,0.03,88431.0,88417.0,0.69266274]
[1769453935319,0.03,88431.0,88420.0,1.07046815]
[1769453935519,0.03,88431.0,88421.0,0.69266274]
[1769453935947,0.03,88430.0,88421.0,0.71597116]
[1769453936156,0.020736,88449.0,88421.0,0.69266274]
[1769453936371,0.03,88439.0,88424.0,0.02330842]
[1769453936572,0.03,88428.0,88419.0,0.02330842]
[1769453936771,0.03,88428.0,88419.0,0.71597116]
[1769453936973,0.03,88428.0,88420.0,0.02330842]
[1769453937190,0.03,88428.0,88402.0,0.04528]
[1769453937191,0.69851499,88422.0,88402.0,0.04528]
[1769453937404,0.01130927,88423.0,88397.0,0.1476]
[1769453937405,0.03,88417.0,88406.0,0.02330842]
[1769453937632,0.03,88417.0,88407.0,0.69298861]
[1769453937879,0.03,88417.0,88407.0,0.71597116]
[1769453938472,0.03,88416.0,88407.0,0.71597116]
[1769453939033,0.03,88416.0,88408.0,0.02330842]
[1769453939233,0.0113094,88422.0,88409.0,0.71597116]
[1769453939441,0.01130927,88423.0,88409.0,0.71597116]
[1769453939650,0.03,88422.0,88409.0,0.71597116]
[1769453939862,0.03,88422.0,88409.0,0.69266274]
[1769453940076,0.03,88422.0,88411.0,0.69266274]
[1769453940491,0.03,88421.0,88413.0,0.02330842]
[1769453940700,0.37780541,88440.0,88416.0,0.69266274]
[1769453940701,0.01130748,88437.0,88416.0,0.69266274]
[1769453940912,0.02355217,88440.0,88421.0,0.69266274]
[1769453941148,0.03485927,88440.0,88421.0,0.69266274]
[1769453941353,0.02355217,88440.0,88421.0,0.69266274]
[1769453941816,0.01130748,88437.0,88421.0,0.69266274]
[1769453942035,0.02355217,88436.0,88414.0,0.69266274]
[1769453942257,0.03126941,88436.0,88416.0,0.69266274]
[1769453942475,0.03,88435.0,88417.0,0.02330842]
[1769453942693,0.03,88435.0,88421.0,0.69266274]
[1769453944909,0.03,88436.0,88413.0,0.17388]
[1769453945129,0.0002543,88438.0,88413.0,0.17388]
[1769453945130,0.03,88430.0,88414.0,0.69266274]
[1769453945346,0.02355217,88429.0,88414.0,0.69266274]
[1769453945569,0.03,88428.0,88419.0,0.37780541]
[1769453945779,0.02355217,88440.0,88421.0,0.71597116]
[1769453946654,0.03,88439.0,88421.0,0.71597116]
[1769453948231,0.03,88439.0,88421.0,0.71697116]
[1769453948450,0.03,88439.0,88422.0,0.02330842]
[1769453948664,0.03,88439.0,88423.0,0.69266274]
[1769453952630,0.03,88439.0,88423.0,0.69366274]
[1769453953061,0.0679224,88445.0,88423.0,0.69366274]
[1769453953062,0.02355217,88452.0,88428.0,0.37724738]
[1769453953276,0.02355217,88452.0,88432.0,0.69266274]
[1769453953277,0.01130582,88450.0,88432.0,0.69266274]
[1769453953510,0.02355217,88448.0,88431.0,0.02330842]
[1769453953731,0.04249934,88446.0,88426.0,0.19714842]
[1769453953996,0.01130646,88445.0,88427.0,0.69266274]
[1769453954214,0.05355217,88444.0,88427.0,0.69266274]
[1769453954427,0.06119301,88444.0,88427.0,0.69266274]
[1769453955256,0.06119301,88444.0,88427.0,0.69366274]
[1769453955478,0.00764084,88442.0,88430.0,0.37724738]
[1769453955678,0.00764084,88442.0,88426.0,0.17384]
[1769453955679,0.03,88441.0,88426.0,0.17384]
[1769453955887,0.03764084,88441.0,88426.0,0.17384]
[1769453956098,0.03764084,88441.0,88426.0,0.121848]
[1769453956252,0.06119301,88441.0,88426.0,0.121848]
[1769453956671,0.03764084,88441.0,88426.0,0.121848]
[1769453956949,0.05355217,88441.0,88427.0,0.69266274]
[1769453957168,0.03,88440.0,88431.0,0.71597116]
[1769453958015,0.03,88448.0,88431.0,0.71597116]
[1769453958232,0.05355217,88448.0,88431.0,0.71597116]
[1769453958431,0.01130556,88452.0,88427.0,0.001]
[1769453958432,0.03346795,88461.0,88438.0,0.37724738]
[1769453958643,0.0113048,88458.0,88442.0,0.02347423]
[1769453958865,0.0113048,88458.0,88443.0,0.64066679]
[1769453959086,0.01130467,88459.0,88443.0,0.64066679]
[1769453959290,0.03,88454.0,88443.0,0.64066679]
[1769453960312,0.03,88454.0,88441.0,0.02347423]
[1769453961156,0.03,88454.0,88441.0,0.01882185]
[1769453963289,0.03,88457.0,88444.0,0.37724738]
[1769453963496,0.03,88457.0,88447.0,0.37724738]
[1769453963920,0.03,88457.0,88444.0,0.64231081]
[1769453964344,0.03,88457.0,88444.0,0.42113524]
[1769453964553,0.03,88457.0,88444.0,0.42213524]
[1769453964785,0.03,88457.0,88444.0,0.42181504]
[1769453965014,0.03,88457.0,88444.0,0.42081504]
[1769453965331,0.03,88466.0,88449.0,0.64231081]
[1769453965521,0.03,88466.0,88451.0,0.64231081]
[1769453966278,0.03,88465.0,88451.0,0.64231081]
[1769453966489,0.03,88465.0,88450.0,0.02309919]
[1769453966728,0.04526381,88467.0,88450.0,0.40034657]
[1769453967169,0.0002,88469.0,88450.0,0.37724738]
[1769453967392,0.0002,88469.0,88453.0,0.64231081]
[1769453967594,0.0002,88469.0,88453.0,0.66541]
[1769453967947,0.0302,88469.0,88453.0,0.66541]
[1769453968507,0.03,88464.0,88450.0,0.37724738]
[1769453968666,0.03,88460.0,88446.0,0.02309919]
[1769453968870,0.03,88460.0,88440.0,0.37724738]
[1769453968871,0.03,88460.0,88447.0,0.1738]
[1769453969039,0.03,88460.0,88450.0,0.37724738]
[1769453969248,0.03,88460.0,88452.0,0.02309919]
[1769453969447,0.03,88460.0,88453.0,0.64231081]
[1769453969644,0.03,88459.0,88453.0,0.64231081]
[1769453969871,0.0002,88469.0,88453.0,0.64231081]
[1769453970069,0.0002,88469.0,88455.0,0.66541]
[1769453970504,0.0002,88469.0,88460.0,0.64231081]
[1769453970839,0.03,88468.0,88453.0,0.64231081]
[1769453972119,0.03,88468.0,88453.0,0.40754805]
[1769453972323,0.03643746,88468.0,88453.0,0.40754805]
[1769453972915,0.03,88460.0,88452.0,0.1738]
[1769453973117,0.03,88460.0,88445.0,0.04528]
[1769453973367,0.02287195,88463.0,88445.0,0.04528]
[1769453973368,0.03,88456.0,88445.0,0.04528]
[1769453973519,0.03,88456.0,88446.0,0.37724738]
[1769453973716,0.03,88456.0,88447.0,0.64231081]
[1769453974312,0.03,88474.0,88450.0,0.37724738]
[1769453974611,0.04528,88478.0,88450.0,0.37724738]
[1769453974612,0.0301899,88468.0,88450.0,0.37724738]
[1769453975093,0.03,88468.0,88451.0,0.64231081]
[1769453975213,0.03,88468.0,88452.0,0.02309919]
[1769453975638,0.03,88467.0,88452.0,0.02309919]
[1769453975843,0.03,88467.0,88455.0,0.64231081]
[1769453976046,0.03,88467.0,88459.0,0.02309919]
[1769453976264,0.03,88467.0,88460.0,0.02309919]
[1769453976625,0.03,88466.0,88460.0,0.64231081]
[1769453976842,0.03,88466.0,88457.0,0.37724738]
[1769453976843,0.0001,88476.0,88459.0,0.02309919]
[1769453977059,0.0001,88476.0,88463.0,0.02309919]
[1769453977305,0.00824044,88475.0,88457.0,0.37724738]
[1769453977540,0.01130275,88474.0,88458.0,0.02309919]
[1769453977760,0.01130275,88474.0,88453.0,0.81611081]
[1769453977761,0.04130326,88470.0,88453.0,0.1738]
[1769453978010,0.00805432,88465.0,88453.0,0.1738]
[1769453978227,0.03,88464.0,88453.0,0.1738]
[1769453979336,0.03,88464.0,88449.0,0.02309919]
[1769453979337,0.03,88461.0,88449.0,0.02309919]
[1769453979969,0.03,88461.0,88450.0,0.37724738]
[1769453980598,0.03,88460.0,88450.0,0.37724738]
[1769453980815,0.03,88460.0,88450.0,1.01955819]
[1769453981012,0.03,88460.0,88449.0,0.02309919]
[1769453981220,0.03,88460.0,88450.0,0.37724738]
[1769453981425,0.03,88460.0,88445.0,0.04528]
[1769453981645,0.03,88459.0,88450.0,0.37724738]
[1769453981846,0.37753038,88480.0,88450.0,0.37724738]
[1769453981847,0.00805432,88469.0,88450.0,0.37724738]
[1769453982061,0.01130262,88475.0,88459.0,0.37724738]
[1769453982266,0.01130288,88473.0,88457.0,0.64231081]
[1769453982478,0.01130275,88474.0,88458.0,0.02309919]
[1769453982705,0.03,88472.0,88458.0,0.02309919]
[1769453983120,0.04130301,88472.0,88458.0,0.02309919]
[1769453983332,0.03,88472.0,88458.0,0.02309919]
[1769453983535,0.03,88470.0,88458.0,0.02309919]
[1769453984559,0.03,88469.0,88458.0,0.02309919]
[1769453984984,0.03,88469.0,88459.0,0.64231081]
[1769453985204,0.03,88469.0,88460.0,0.02309919]
[1769453985632,0.03,88468.0,88462.0,0.02309919]
[1769453985843,0.02287195,88479.0,88463.0,0.64231081]
[1769453986043,0.03417406,88479.0,88463.0,0.64231081]
[1769453986242,0.01130224,88478.0,88463.0,0.64231081]
[1769453986448,0.0906848,88479.0,88463.0,0.64231081]
[1769453986680,0.01130224,88478.0,88463.0,0.64231081]
[1769453986941,0.03,88475.0,88462.0,0.02309919]
[1769453988292,0.03,88474.0,88462.0,0.02309919]
[1769453988662,0.03,88474.0,88462.0,0.67549047]
[1769453989322,0.03,88473.0,88462.0,0.67549047]
[1769453989891,0.01130326,88470.0,88462.0,0.67549047]
[1769453990256,0.03,88469.0,88460.0,0.37724738]
[1769453990428,0.03,88469.0,88461.0,0.65239128]
[1769453990985,0.03,88468.0,88461.0,0.65239128]
[1769453992181,0.03,88467.0,88461.0,0.65239128]
[1769453992676,0.03,88467.0,88459.0,0.02270304]
[1769453992882,0.03,88467.0,88457.0,0.37724738]
[1769453993128,0.01130313,88471.0,88457.0,0.37724738]
[1769453993129,0.03,88471.0,88457.0,0.37724738]
[1769453993325,0.03,88471.0,88460.0,0.37724738]
[1769453993493,0.03,88469.0,88460.0,0.37724738]
[1769453993889,0.27628425,88469.0,88460.0,0.37724738]
[1769453994100,0.03,88459.0,88446.0,0.17376]
[1769453994318,0.03,88459.0,88446.0,0.177318]
[1769453994522,0.03,88459.0,88440.0,0.37724738]
[1769453994523,0.03,88457.0,88442.0,0.003558]
[1769453994717,0.03,88457.0,88438.0,0.19284]
[1769453994718,0.70607944,88457.0,88447.0,0.37724738]
[1769453995060,0.03,88457.0,88447.0,0.37724738]
[1769453995611,0.03,88456.0,88447.0,0.37724738]
[1769453996677,0.03,88455.0,88447.0,0.37724738]
[1769453997092,0.01130288,88473.0,88449.0,0.02270304]
[1769453997299,0.03619538,88475.0,88460.0,0.37724738]
[1769453997500,0.17376,88472.0,88460.0,0.37724738]
[1769453997709,0.03,88471.0,88454.0,0.65239128]
[1769453997920,0.03,88471.0,88454.0,0.67509432]
[1769453998532,0.03,88471.0,88455.0,0.67509432]
[1769453998954,0.03,88470.0,88455.0,0.67509432]
[1769453999158,0.03,88470.0,88460.0,0.37724738]
[1769453999975,0.03,88469.0,88460.0,0.37724738]
[1769454001008,0.7009722,88475.0,88460.0,0.37724738]
[1769454001370,0.0001,88476.0,88461.0,0.67509432]
[1769454001588,0.0029469,88490.0,88467.0,0.65239128]
[1769454001770,0.0029469,88490.0,88449.0,0.04081378]
[1769454001771,0.02489276,88498.0,88480.0,0.37660697]
[1769454001988,0.67923861,88496.0,88480.0,0.37724738]
[1769454002274,0.03,88494.0,88480.0,0.37724738]
[1769454002450,0.03,88494.0,88483.0,0.65239128]
[1769454002653,0.03,88494.0,88480.0,0.37724738]
[1769454002654,0.03,88494.0,88487.0,0.65239128]
[1769454002819,0.03,88494.0,88488.0,0.67509432]
[1769454003021,0.03,88493.0,88488.0,0.65239128]
[1769454003268,0.03,88493.0,88490.0,0.02270304]
[1769454003470,0.03,88493.0,88480.0,0.37724738]
[1769454003471,0.03,88493.0,88491.0,0.02270304]
[1769454003669,10.0,88500.0,88493.0,0.65239128]
[1769454003985,10.0,88500.0,88497.0,0.65239128]
[1769454004226,9.51066765,88500.0,88498.0,0.02270304]
[1769454004495,8.76694606,88500.0,88498.0,0.02270304]
[1769454004697,8.76694606,88500.0,88490.0,0.37724738]
[1769454004698,3.67566245,88500.0,88492.0,0.02270304]
[1769454004898,3.67566245,88500.0,88491.0,0.02270304]
[1769454004899,3.61342583,88500.0,88491.0,0.02270304]
[1769454005861,3.61342583,88500.0,88492.0,0.02270304]
[1769454006064,3.61342583,88500.0,88491.0,0.04081378]
[1769454006065,0.22966994,88500.0,88498.0,0.02270304]
[1769454006275,0.17376,88526.0,88491.0,0.05211436]
[1769454006276,0.005904,88569.0,88528.0,0.00368722]
[1769454006488,0.17376,88546.0,88529.0,0.01901582]
[1769454006715,0.02509276,88554.0,88505.0,0.02270304]
[1769454006716,0.00631278,88529.0,88505.0,0.02270304]
[1769454006924,0.7,88528.0,88511.0,0.02270304]
[1769454007129,0.17376,88528.0,88519.0,0.37724738]
[1769454007335,0.03,88537.0,88519.0,0.37724738]
[1769454007523,0.03,88527.0,88520.0,0.02270304]
[1769454008376,0.03,88526.0,88520.0,0.02270304]
[1769454008575,0.17376,88531.0,88527.0,0.02270304]
[1769454008894,0.7,88542.0,88527.0,0.02270304]
[1769454009095,0.71129292,88551.0,88527.0,0.02270304]
[1769454009304,0.17372,88537.0,88527.0,0.02270304]
[1769454009506,0.01129279,88552.0,88527.0,0.02270304]
[1769454009507,0.03,88536.0,88527.0,0.02270304]
[1769454009887,0.03,88536.0,88522.0,0.37628671]
[1769454009888,1e-08,88533.0,88532.0,0.05647675]
[1769454010231,1e-08,88533.0,88520.0,0.04081378]
[1769454010232,0.0002,88554.0,88539.0,0.02270304]
[1769454010233,1e-08,88540.0,88539.0,0.02270304]
[1769454010458,0.0002,88554.0,88542.0,0.01129407]
[1769454010644,0.0002,88554.0,88545.0,0.02270304]
[1769454010853,0.0002,88554.0,88552.0,0.02270304]
[1769454010854,1e-08,88554.0,88552.0,0.02270304]
[1769454011756,1e-08,88554.0,88552.0,0.01639026]
[1769454012390,1e-08,88554.0,88545.0,0.001]
[1769454012391,0.03000001,88554.0,88545.0,0.001]
[1769454012591,0.03,88546.0,88545.0,0.001]
[1769454012829,0.6998,88541.0,88512.0,0.001]
[1769454013064,0.7298,88538.0,88519.0,0.02270304]
[1769454013311,0.6998,88555.0,88552.0,0.001]
[1769454013547,0.6998,88555.0,88534.0,0.02270304]
[1769454013744,0.6998,88555.0,88538.0,0.02270304]
[1769454013946,0.03000001,88554.0,88538.0,0.02270304]
[1769454014148,0.03000001,88554.0,88539.0,0.00924743]
[1769454014149,0.03,88552.0,88539.0,0.00924743]
[1769454014361,0.03,88552.0,88540.0,0.02270304]
[1769454014584,1e-08,88554.0,88540.0,0.02270304]
[1769454014585,0.03,88550.0,88540.0,0.02270304]
[1769454015213,0.03,88548.0,88540.0,0.02270304]
[1769454015547,0.20368,88548.0,88540.0,0.02270304]
[1769454015988,0.20368,88548.0,88528.0,0.48146829]
[1769454015989,0.20368,88548.0,88528.0,0.47217243]
[1769454016193,0.20368,88548.0,88532.0,0.02270304]
[1769454016391,0.20368,88548.0,88536.0,0.02270304]
[1769454017212,0.03,88546.0,88522.0,0.02270304]
[1769454017414,0.03,88542.0,88525.0,0.04081378]
[1769454017711,0.03,88540.0,88536.0,0.001]
[1769454018174,0.03,88540.0,88525.0,0.05211002]
[1769454018420,0.03,88540.0,88527.0,0.01329598]
[1769454018607,0.03,88539.0,88528.0,0.02270304]
[1769454019594,0.03,88536.0,88523.0,0.1476]
[1769454019857,0.17364,88541.0,88500.0,0.47017243]
[1769454019858,0.03,88530.0,88518.0,0.02478392]
[1769454020055,0.03,88530.0,88518.0,0.04610369]
[1769454020385,0.03,88530.0,88518.0,0.02478392]
[1769454021123,0.03,88529.0,88516.0,0.01329739]
[1769454021334,0.03,88529.0,88517.0,0.02478392]
[1769454021547,0.03,88529.0,88520.0,0.01129688]
[1769454021768,0.03,88529.0,88524.0,0.02478392]
[1769454021987,0.17364,88540.0,88532.0,0.02478392]
[1769454022189,0.6996,88552.0,88532.0,0.02478392]
[1769454022402,0.6996,88550.0,88534.0,0.02478392]
[1769454022614,0.6996,88550.0,88535.0,0.00112546]
[1769454023234,0.03,88545.0,88520.0,0.1476]
[1769454023515,0.0133642,88550.0,88520.0,0.1476]
[1769454023516,0.03,88539.0,88521.0,0.02478392]
[1769454023712,0.7293749,88535.0,88521.0,0.02478392]
[1769454024032,0.69918201,88531.0,88521.0,0.02478392]
[1769454024799,0.69918201,88531.0,88521.0,0.02578392]
[1769454025011,0.03,88530.0,88521.0,0.02578392]
[1769454025345,0.03,88530.0,88522.0,0.02478392]
[1769454025568,0.69918201,88530.0,88522.0,0.02478392]
[1769454025767,0.69918201,88530.0,88510.0,0.18159784]
[1769454025990,0.69918201,88530.0,88506.0,0.06779184]
[1769454025991,0.69918201,88530.0,88511.0,0.02591223]
[1769454026195,0.69918201,88530.0,88511.0,0.00112831]
[1769454026537,0.69918201,88530.0,88514.0,0.02591597]
[1769454026819,0.69918201,88530.0,88516.0,0.02591597]
[1769454027027,0.69918201,88530.0,88518.0,0.02591597]
[1769454029219,0.69918201,88530.0,88518.0,0.02691597]
[1769454029823,0.03,88529.0,88519.0,0.00112842]
[1769454030044,0.1736,88530.0,88529.0,0.01]
[1769454030242,0.1736,88530.0,88529.0,0.04716183]
[1769454030444,0.1736,88530.0,88529.0,0.03716183]
[1769454030831,0.1736,88530.0,88517.0,0.18272626]
[1769454031124,0.1736,88530.0,88518.0,0.03716183]
[1769454031328,0.1736,88530.0,88520.0,0.03716183]
[1769454031519,0.03,88536.0,88522.0,0.03716183]
[1769454031726,0.03,88530.0,88523.0,0.03829016]
[1769454031902,0.69918201,88530.0,88523.0,0.03716183]
[1769454032103,0.69918201,88530.0,88499.0,0.18159784]
[1769454032104,0.78646021,88530.0,88499.0,0.18159784]
[1769454032314,0.78646021,88530.0,88500.0,0.04390837]
[1769454032857,0.03,88523.0,88500.0,0.04390837]
[1769454033166,0.03,88523.0,88495.0,0.0002989]
[1769454033167,0.03,88515.0,88495.0,0.0002989]
[1769454033319,0.03,88509.0,88495.0,0.04420727]
[1769454033518,0.2188,88514.0,88509.0,0.01]
[1769454033519,0.0452,88514.0,88509.0,0.01]
[1769454033684,0.66918201,88517.0,88509.0,0.01]
[1769454033885,0.84278201,88516.0,88509.0,0.01]
[1769454034081,0.84278201,88516.0,88505.0,0.04390837]
[1769454034339,0.01129522,88533.0,88505.0,0.04390837]
[1769454034340,0.0112942,88541.0,88506.0,0.04840674]
[1769454034539,0.47017243,88550.0,88506.0,0.04840674]
[1769454034540,0.03,88529.0,88506.0,0.04840674]
[1769454034774,0.03,88523.0,88506.0,0.04840674]
[1769454035002,0.03,88519.0,88506.0,0.04840674]
[1769454035202,0.03,88519.0,88506.0,0.1928965]
[1769454035407,0.03,88519.0,88508.0,0.04840674]
[1769454036219,0.03,88518.0,88508.0,0.04840674]
[1769454036826,0.03,88516.0,88508.0,0.04840674]
[1769454037029,0.03,88516.0,88508.0,0.04940674]
[1769454037229,0.03,88516.0,88510.0,0.05065521]
[1769454037967,0.03,88515.0,88510.0,0.05065521]
[1769454038741,0.03,88511.0,88496.0,0.02982552]
[1769454038896,0.03,88509.0,88496.0,0.02982552]
[1769454039707,0.03,88509.0,88497.0,0.01129981]
[1769454039907,0.66918201,88511.0,88497.0,0.01129981]
[1769454039908,0.03,88508.0,88498.0,0.02982552]
[1769454040087,0.03,88508.0,88499.0,0.02982552]
[1769454040943,0.03,88507.0,88499.0,0.02982552]
[1769454041500,0.03,88507.0,88496.0,0.001]
[1769454041718,0.03,88507.0,88485.0,0.01130135]
[1769454041719,0.03,88503.0,88495.0,0.03516677]
[1769454042125,0.03,88503.0,88498.0,0.03729208]
[1769454042826,0.03,88502.0,88498.0,0.04444129]
[1769454043224,0.03,88502.0,88498.0,0.03729208]
[1769454043869,0.03,88501.0,88498.0,0.03729208]
[1769454044386,0.03,88501.0,88495.0,0.01159897]
[1769454044619,0.03,88501.0,88499.0,0.04052334]
[1769454044818,0.03,88500.0,88499.0,0.04052334]
[1769454045022,0.66918201,88510.0,88499.0,0.04052334]
[1769454045246,0.17364,88512.0,88499.0,0.0518229]
[1769454045473,0.66918201,88511.0,88499.0,0.04052334]
[1769454045683,0.04524,88533.0,88505.0,0.01129879]
[1769454045813,0.04524,88533.0,88501.0,0.04081378]
[1769454045814,0.69918201,88531.0,88513.0,0.06778639]
[1769454046018,0.87282201,88531.0,88515.0,0.04052334]
[1769454046246,0.87282201,88531.0,88515.0,0.04375221]
[1769454046728,0.87282201,88531.0,88511.0,0.01129803]
[1769454046729,0.03,88531.0,88522.0,0.04375221]
[1769454046931,0.66918201,88538.0,88522.0,0.04375221]
[1769454046932,0.03,88530.0,88524.0,0.04375221]
[1769454047063,0.05645818,88562.0,88530.0,0.01]
[1769454047270,0.66918201,88552.0,88534.0,0.04375221]
[1769454047465,0.66918201,88552.0,88532.0,0.01129535]
[1769454047466,0.66918201,88552.0,88536.0,0.04375221]
[1769454047887,0.03,88549.0,88536.0,0.04375221]
[1769454048089,0.03,88547.0,88536.0,0.04375221]
[1769454048722,0.03,88547.0,88539.0,0.04859209]
[1769454049065,0.03,88552.0,88548.0,0.04859209]
[1769454050109,0.03,88551.0,88548.0,0.04859209]
[1769454051111,0.03,88555.0,88548.0,0.04859209]
[1769454051719,0.03,88553.0,88548.0,0.04859209]
[1769454051913,0.03,88551.0,88536.0,0.19389268]
[1769454052283,0.03,88545.0,88526.0,0.0564802]
[1769454052488,0.03,88541.0,88526.0,0.04349447]
[1769454052701,0.6974227,88541.0,88528.0,0.04349447]
[1769454053372,0.6674227,88556.0,88541.0,0.01]
[1769454053580,0.03,88553.0,88541.0,0.01]
[1769454053821,0.03,88549.0,88537.0,0.04349447]
[1769454054022,0.03,88549.0,88538.0,0.07513966]
[1769454054506,0.6974227,88549.0,88538.0,0.07513966]
[1769454054894,0.6974227,88549.0,88538.0,0.04349447]
[1769454056827,0.6974227,88549.0,88529.0,0.00129979]
[1769454056976,0.6974227,88549.0,88525.0,0.00129979]
[1769454057174,0.6974227,88549.0,88526.0,0.05951303]
[1769454057407,0.6974227,88549.0,88528.0,0.05951303]
[1769454057627,0.6974227,88549.0,88530.0,0.05951303]
[1769454057771,0.6974227,88549.0,88531.0,0.00129976]
[1769454058434,0.03,88552.0,88549.0,0.01]
[1769454058634,0.03,88550.0,88549.0,0.01]
[1769454058828,0.03,88550.0,88541.0,0.06625992]
[1769454059072,0.03,88548.0,88541.0,0.06625992]
[1769454059721,0.03,88546.0,88541.0,0.06625992]
[1769454059844,0.1736,88547.0,88546.0,0.01]
[1769454060257,0.1736,88547.0,88542.0,0.01129407]
[1769454060477,0.1736,88547.0,88543.0,0.06850881]
[1769454060704,0.0002989,88558.0,88549.0,0.67790476]
[1769454060915,0.03,88556.0,88555.0,0.06850881]
[1769454061359,0.0002989,88558.0,88555.0,0.06850881]
[1769454061560,0.0002989,88576.0,88551.0,0.05646405]
[1769454061561,0.0452,88559.0,88557.0,0.06850881]
[1769454061803,0.6674227,88574.0,88557.0,0.06850881]
[1769454061804,0.1736,88558.0,88557.0,0.06850881]
[1769454061977,0.2036,88558.0,88553.0,0.06850881]
[1769454062334,0.2036,88558.0,88519.0,0.2453]
[1769454062335,0.03,88556.0,88541.0,0.06850881]
[1769454062474,0.03,88552.0,88544.0,0.01129382]
[1769454062673,0.03,88552.0,88545.0,0.01129369]
[1769454062879,0.03,88552.0,88549.0,0.07980199]
[1769454062880,0.1736,88551.0,88549.0,0.07980199]
[1769454063082,0.1636,88551.0,88550.0,0.06850881]
[1769454063493,0.1736,88551.0,88550.0,0.06850881]
[1769454064062,0.1736,88551.0,88550.0,0.06839881]
[1769454064261,0.03,88553.0,88550.0,0.06839881]
[1769454064511,0.0002107,88571.0,88558.0,0.67790476]
[1769454064844,0.0002107,88571.0,88558.0,0.07070291]
[1769454065273,0.0302107,88571.0,88558.0,0.07070291]
[1769454065487,0.0302107,88571.0,88552.0,0.22585585]
[1769454065488,0.6774227,88558.0,88537.0,0.01129471]
[1769454065766,0.6774227,88558.0,88548.0,0.07070291]
[1769454065767,0.03,88557.0,88548.0,0.07070291]
[1769454066406,0.03,88557.0,88549.0,0.00707029]
[1769454066608,0.03,88556.0,88549.0,0.00707029]
[1769454066759,0.03,88556.0,88549.0,0.0777732]
[1769454067145,0.03,88556.0,88549.0,0.07070291]
[1769454067932,0.03,88556.0,88540.0,0.01242161]
[1769454067933,0.03,88555.0,88540.0,0.00112728]
[1769454068134,0.6974227,88555.0,88541.0,0.03535146]
[1769454068383,0.6974227,88555.0,88541.0,0.03647885]
[1769454069045,0.6974227,88555.0,88533.0,0.05649522]
[1769454069251,0.6974227,88555.0,88540.0,0.001]
[1769454069883,0.17356,88554.0,88540.0,0.01229433]